bitfinex/quotes_SOLUSD_20251002
["timestamp","ask_amount","ask_price","bid_price","bid_amount"]
[1759434885507,0.47,232.91,232.86,0.1]
[1759434886201,4.29368827,232.9,232.86,0.1]
[1759434886699,4.76368827,232.9,232.86,0.1]
[1759434887302,4.29368827,232.9,232.86,0.1]
[1759434887502,15.49790896,232.9,232.86,0.1]
[1759434887900,4.29368827,232.9,232.86,0.1]
[1759434888708,15.49790896,232.9,232.86,0.1]
[1759434890384,15.02790896,232.9,232.86,0.1]
[1759434890583,4.29368827,232.9,232.86,0.1]
[1759434890788,4.29368827,232.9,232.86,1.0693]
[1759434892809,15.02726374,232.91,232.86,0.3593]
[1759434893304,10.87647521,232.97,232.87,0.71]
[1759434893510,10.87647521,232.97,232.9,20.8]
[1759434893803,10.87647521,232.97,232.9,21.51]
[1759434893988,10.87647521,232.99,232.91,0.71]
[1759434895285,10.87647521,232.97,232.91,0.71]
[1759434895803,11.34647521,232.97,232.89,20.8]
[1759434896016,11.34647521,232.97,232.88,31.47]
[1759434896218,11.34647521,232.97,232.91,20.8]
[1759434896418,10.87647521,232.97,232.91,20.8]
[1759434897505,10.87647521,232.95,232.86,0.3593]
[1759434897707,15.49403845,232.96,232.86,1.0693]
[1759434897890,15.49403845,232.96,232.88,20.8]
[1759434897891,15.02403845,232.96,232.88,20.8]
[1759434898102,15.02403845,232.96,232.89,0.71]
[1759434898506,10.87647521,232.95,232.89,0.71]
[1759434898710,11.34647521,232.95,232.89,20.8]
[1759434898891,0.47,232.94,232.89,20.8]
[1759434899209,0.47,232.93,232.89,20.8]
[1759434899590,15.0253284,232.94,232.89,20.8]
[1759434899791,15.4953284,232.94,232.89,20.8]
[1759434900217,11.34647521,232.93,232.86,0.3593]
[1759434900510,10.87647521,232.91,232.75,0.1]
[1759434900714,10.87647521,232.87,232.75,0.1]
[1759434900885,13.62028017,232.91,232.75,0.1]
[1759434900886,10.87647521,232.85,232.75,0.1]
[1759434901286,10.87647521,232.83,232.75,0.1]
[1759434901692,10.87647521,232.81,232.75,0.1]
[1759434901898,4.29516364,232.82,232.76,21.52]
[1759434902297,4.29494367,232.84,232.77,0.72]
[1759434902498,10.87647521,232.83,232.75,0.1]
[1759434902710,10.87647521,232.83,232.77,20.8]
[1759434902905,4.29494367,232.84,232.78,0.72]
[1759434903112,4.29494367,232.84,232.78,21.52]
[1759434903527,4.29460219,232.86,232.78,21.52]
[1759434903831,4.29460219,232.86,232.78,0.72]
[1759434903993,11.34647521,232.85,232.77,20.8]
[1759434904317,13.62028017,232.83,232.75,0.1]
[1759434904703,10.87647521,232.81,232.75,0.1]
[1759434905203,30.76,232.84,232.75,0.1]
[1759434905204,10.87647521,232.79,232.75,0.1]
[1759434905722,10.87647521,232.77,232.75,0.1]
[1759434906219,4.2959017,232.78,232.75,0.1]
[1759434906417,10.87647521,232.79,232.75,0.1]
[1759434907815,4.2959017,232.78,232.75,0.1]
[1759434909415,4.29566295,232.8,232.75,0.1]
[1759434909799,25.90954796,232.82,232.75,0.1]
[1759434911105,26.37954796,232.82,232.75,0.1]
[1759434912391,47.85536618,232.82,232.75,0.1]
[1759434913206,47.85536618,232.82,232.75,0.3595]
[1759434913796,50.59917114,232.82,232.73,0.1]
[1759434914009,31.67647521,232.79,232.73,1e-08]
[1759434914209,31.67647521,232.74,232.73,1e-08]
[1759434914392,10.87647521,232.74,232.73,1e-08]
[1759434914596,11.34647521,232.74,232.73,1e-08]
[1759434915805,36.44311523,232.74,232.73,1e-08]
[1759434916308,10.87647521,232.73,232.68,0.1]
[1759434916813,10.87647521,232.71,232.68,0.1]
[1759434917018,10.87647521,232.69,232.68,0.1]
[1759434917908,15.64403849,232.69,232.68,0.1]
[1759434918410,15.17403849,232.69,232.68,0.1]
[1759434918615,45.95403849,232.69,232.68,0.1]
[1759434919746,15.17403849,232.69,232.68,0.1]
[1759434919918,15.17403849,232.69,232.68,0.82]
[1759434920115,15.17403849,232.69,232.68,0.1]
[1759434925448,4.29756328,232.69,232.68,0.82]
[1759434925935,4.29756328,232.69,232.68,0.1]
[1759434926913,10.87647521,232.73,232.68,0.82]
[1759434927149,20.0,232.87,232.68,0.82]
[1759434927150,7.1379149,232.87,232.71,20.8]
[1759434927447,31.25,232.86,232.72,0.72]
[1759434927645,0.47,232.85,232.72,0.72]
[1759434927865,0.47,232.84,232.72,0.72]
[1759434928147,10.87647521,232.82,232.72,0.72]
[1759434928322,10.87647521,232.8,232.72,0.72]
[1759434929025,10.87647521,232.78,232.72,0.72]
[1759434929231,30.8,232.77,232.72,0.72]
[1759434929434,30.8,232.77,232.68,4.39772403]
[1759434929628,30.8,232.77,232.73,0.72]
[1759434929834,30.8,232.77,232.74,0.72]
[1759434930048,30.8,232.77,232.75,0.72]
[1759434930730,4.29627083,232.76,232.75,0.72]
[1759434932640,4.29627083,232.76,232.72,0.67]
[1759434932824,4.29627083,232.76,232.73,0.67]
[1759434933151,4.29627083,232.76,232.74,0.67]
[1759434933848,15.03630192,232.77,232.74,0.67]
[1759434934044,15.03630192,232.77,232.71,0.67]
[1759434935839,11.34647521,232.76,232.68,0.1]
[1759434936160,10.87647521,232.74,232.68,0.1]
[1759434936651,10.87647521,232.74,232.68,0.77]
[1759434936842,4.29682464,232.73,232.68,21.57]
[1759434937352,15.03888625,232.73,232.69,0.67]
[1759434937859,15.03888625,232.73,232.68,0.1]
[1759434938055,15.03888625,232.73,232.68,0.77]
[1759434938353,41.65647521,232.72,232.68,0.1]
[1759434938545,10.87647521,232.7,232.68,0.1]
[1759434938855,4.29756328,232.69,232.68,0.1]
[1759434939547,15.17403849,232.69,232.68,0.1]
[1759434939732,46.42403849,232.69,232.68,0.1]
[1759434942360,10.87647521,232.68,232.6,0.1]
[1759434942736,10.87647521,232.66,232.6,0.1]
[1759434942934,30.78,232.65,232.6,0.1]
[1759434943129,10.87647521,232.67,232.6,0.1]
[1759434943352,10.87647521,232.63,232.6,0.77]
[1759434943543,30.78,232.62,232.6,0.77]
[1759434943859,10.87647521,232.63,232.61,0.67]
[1759434944048,10.87647521,232.66,232.62,0.67]
[1759434944249,10.87647521,232.66,232.63,0.67]
[1759434944560,30.78,232.67,232.63,0.67]
[1759434944561,30.78,232.67,232.64,0.67]
[1759434945253,30.78,232.67,232.6,0.1]
[1759434945254,15.17459263,232.66,232.61,0.67]
[1759434945755,15.17459263,232.66,232.6,0.1]
[1759434945957,15.17459263,232.66,232.61,0.67]
[1759434946261,15.17459263,232.66,232.62,0.67]
[1759434947257,25.91988619,232.66,232.62,0.67]
[1759434947557,25.91988619,232.66,232.6,21.57]
[1759434947558,15.17459263,232.66,232.6,21.57]
[1759434947741,15.17459263,232.66,232.63,0.67]
[1759434947742,10.87647521,232.66,232.63,0.67]
[1759434948060,10.87647521,232.66,232.64,0.67]
[1759434948251,15.17461638,232.66,232.64,0.67]
[1759434948559,10.87647521,232.66,232.64,0.67]
[1759434948856,41.65647521,232.67,232.6,4.39921176]
[1759434949061,10.87647521,232.7,232.65,0.67]
[1759434949235,41.65647521,232.7,232.65,0.67]
[1759434949438,4.29756328,232.69,232.66,0.67]
[1759434951039,4.29756328,232.69,232.62,20.8]
[1759434951239,4.29756328,232.69,232.64,0.67]
[1759434951560,4.29756328,232.69,232.65,0.67]
[1759434953200,10.87647521,232.68,232.62,21.47]
[1759434953840,10.87647521,232.68,232.63,21.47]
[1759434954143,10.87647521,232.68,232.63,20.8]
[1759434954341,10.87647521,232.68,232.64,0.67]
[1759434954560,10.87647521,232.68,232.62,0.67]
[1759434954953,4.29793269,232.67,232.63,20.8]
[1759434955148,4.29793269,232.67,232.61,0.67]
[1759434955341,4.29793269,232.67,232.62,0.67]
[1759434955538,4.29793269,232.67,232.63,0.67]
[1759434955963,4.29793269,232.67,232.64,0.67]
[1759434956549,4.29793269,232.67,232.6,0.1]
[1759434956550,10.87647521,232.66,232.6,0.1]
[1759434956766,41.65647521,232.66,232.6,0.1]
[1759434956970,10.87647521,232.64,232.6,0.1]
[1759434958574,4.29867171,232.63,232.6,20.9]
[1759434959070,4.29867171,232.63,232.6,21.57]
[1759434959277,10.74439355,232.68,232.61,0.67]
[1759434959459,41.65647521,232.67,232.61,0.67]
[1759434960176,4.29756328,232.69,232.63,20.8]
[1759434960177,10.87647521,232.68,232.63,20.8]
[1759434960472,10.87647521,232.68,232.64,0.67]
[1759434960473,15.1744079,232.67,232.64,0.67]
[1759434960979,10.87647521,232.67,232.64,0.67]
[1759434961149,10.87647521,232.67,232.61,20.8]
[1759434961354,10.87647521,232.67,232.62,0.66]
[1759434961556,10.87647521,232.67,232.63,0.66]
[1759434961771,10.87647521,232.67,232.64,0.66]
[1759434962172,10.87647521,232.67,232.62,0.66]
[1759434962369,10.87647521,232.67,232.63,0.66]
[1759434962567,4.29811742,232.66,232.63,0.66]
[1759434963264,11.34647521,232.65,232.6,0.1]
[1759434963473,10.87647521,232.63,232.6,0.1]
[1759434964167,11.34647521,232.63,232.6,0.1]
[1759434964477,10.87647521,232.63,232.6,0.1]
[1759434964683,10.87647521,232.65,232.61,0.66]
[1759434964981,10.87647521,232.67,232.63,20.8]
[1759434965484,10.87647521,232.67,232.6,0.76]
[1759434966772,4.29811742,232.66,232.6,0.76]
[1759434967868,10.87647521,232.67,232.6,25.85906526]
[1759434968071,4.29753651,232.7,232.63,20.8]
[1759434968377,41.65647521,232.71,232.64,0.66]
[1759434969770,45.95379412,232.71,232.64,0.9199]
[1759434970068,45.95379412,232.71,232.67,20.8]
[1759434970277,35.07731891,232.71,232.67,20.8]
[1759434970476,35.07731891,232.71,232.65,0.66]
[1759434971488,45.82030374,232.71,232.65,0.66]
[1759434971784,15.04030374,232.71,232.65,0.66]
[1759434973690,15.17379412,232.71,232.65,0.66]
[1759434974794,25.91677895,232.71,232.65,0.66]
[1759434975087,25.91677895,232.71,232.65,21.46]
[1759434975290,15.17379412,232.71,232.65,21.46]
[1759434975663,15.17379412,232.71,232.65,0.66]
[1759434977090,10.87647521,232.74,232.67,20.8]
[1759434978276,10.87647521,232.74,232.66,0.66]
[1759434978597,15.50888625,232.73,232.66,0.66]
[1759434978782,10.87647521,232.72,232.64,0.2599]
[1759434978979,10.87647521,232.72,232.64,0.9199]
[1759434979690,10.87647521,232.7,232.64,0.9199]
[1759434980179,4.29756328,232.69,232.64,0.2599]
[1759434980500,4.29756328,232.69,232.64,0.9199]
[1759434980682,4.29756328,232.69,232.65,0.66]
[1759434981294,10.87647521,232.7,232.66,0.66]
[1759434983491,4.29719393,232.71,232.67,0.66]
[1759434984003,4.29690476,232.73,232.68,0.66]
[1759434984303,4.29690476,232.73,232.69,0.66]
[1759434984997,41.97068214,232.76,232.69,0.66]
[1759434985202,10.87647521,232.75,232.69,0.66]
[1759434985403,15.17293063,232.75,232.69,0.66]
[1759434985600,10.73960926,232.79,232.69,0.66]
[1759434985601,4.2960752,232.78,232.69,25.75751572]
[1759434985901,11.34647521,232.77,232.72,20.8]
[1759434986894,11.34647521,232.77,232.7,0.66]
[1759434987580,4.29627083,232.76,232.7,0.66]
[1759434987998,4.29627083,232.76,232.61,21.49462489]
[1759434987999,11.34647521,232.75,232.64,0.66]
[1759434988296,10.87647521,232.73,232.61,0.66]
[1759434988500,10.87647521,232.71,232.6,0.1]
[1759434988905,10.87647521,232.69,232.6,0.1]
[1759434989215,0.47,232.7,232.61,20.8]
[1759434989216,10.87647521,232.67,232.61,20.8]
[1759434989415,10.87647521,232.67,232.6,0.76]
[1759434989615,4.29811742,232.66,232.6,5.05916061]
[1759434989778,4.29811742,232.66,232.63,20.8]
[1759434989977,4.29811742,232.66,232.6,4.39916061]
[1759434990179,4.29811742,232.66,232.61,0.66]
[1759434991309,10.74460754,232.68,232.62,0.66]
[1759434991310,4.29788046,232.68,232.62,0.66]
[1759434991805,11.21326135,232.71,232.62,0.66]
[1759434991806,15.17403849,232.69,232.62,0.66]
[1759434991992,15.17403849,232.69,232.62,4.9587919]
[1759434992300,15.17403849,232.69,232.63,0.69]
[1759434995987,4.29756328,232.69,232.63,25.78860169]
[1759434996192,4.29756328,232.69,232.64,0.69]
[1759434996993,4.29756328,232.69,232.65,0.69]
[1759434997190,4.29756328,232.69,232.66,0.69]
[1759434997609,11.34647521,232.73,232.64,4.98842877]
[1759434997797,10.87647521,232.72,232.65,0.69]
[1759434998309,15.17348449,232.72,232.65,0.69]
[1759434999290,15.17348449,232.72,232.65,4.98829981]
[1759434999502,15.17348449,232.72,232.65,0.69]
[1759434999894,15.17348449,232.72,232.65,4.98828715]
[1759435000117,15.17348449,232.72,232.66,0.69]
[1759435000496,25.91600769,232.72,232.66,0.69]
[1759435001307,10.87647521,232.7,232.64,20.8]
[1759435001498,0.47,232.69,232.63,20.8]
[1759435002402,4.29774798,232.68,232.63,20.8]
[1759435002598,4.29774798,232.68,232.63,21.49]
[1759435002807,10.87647521,232.73,232.64,0.69]
[1759435004518,4.29700928,232.72,232.65,25.09830217]
[1759435004715,0.47,232.71,232.65,20.8]
[1759435005107,0.47,232.7,232.65,20.8]
[1759435005312,0.47,232.69,232.64,0.2599]
[1759435005511,0.47,232.68,232.64,0.2599]
[1759435006606,4.29793269,232.67,232.64,0.2599]
[1759435007206,4.29775304,232.68,232.64,0.2599]
[1759435007693,4.76775304,232.68,232.64,0.2599]
[1759435008406,0.47,232.67,232.64,0.2599]
[1759435008727,4.29775304,232.68,232.64,0.2599]
[1759435008911,4.76775304,232.68,232.64,0.2599]
[1759435009426,0.47,232.67,232.64,0.2599]
[1759435010630,4.29811742,232.66,232.64,0.2599]
[1759435011940,4.76811742,232.66,232.64,0.2599]
[1759435012106,4.29776858,232.68,232.64,0.2599]
[1759435012303,4.29776858,232.68,232.65,0.69]
[1759435012504,15.1738538,232.7,232.64,0.2599]
[1759435012819,15.1738538,232.7,232.65,0.69]
[1759435013120,0.47,232.69,232.64,0.2599]
[1759435013627,0.47,232.68,232.64,0.2599]
[1759435013827,25.91730029,232.7,232.64,0.2599]
[1759435014037,0.47,232.68,232.64,0.2599]
[1759435014236,26.38730029,232.7,232.64,0.2599]
[1759435015336,26.38730029,232.7,232.64,0.9499]
[1759435015337,4.29737859,232.7,232.64,0.9499]
[1759435015541,4.29737859,232.7,232.65,0.69]
[1759435016428,4.29737859,232.7,232.66,0.69]
[1759435016632,4.29719393,232.71,232.67,0.69]
[1759435017009,4.29719393,232.71,232.68,0.69]
[1759435017735,15.03915315,232.73,232.68,0.69]
[1759435018106,15.03915315,232.73,232.65,20.8]
[1759435018306,15.03915315,232.73,232.66,0.69]
[1759435018307,15.50915315,232.73,232.66,0.69]
[1759435019229,15.03915315,232.73,232.66,0.69]
[1759435019621,4.29682464,232.73,232.66,0.69]
[1759435019911,4.29664002,232.74,232.67,4.29793269]
[1759435020120,15.03824008,232.74,232.66,0.69]
[1759435020330,10.87647521,232.73,232.66,0.69]
[1759435020543,10.87647521,232.73,232.65,20.8]
[1759435020544,11.34647521,232.73,232.65,20.8]
[1759435020835,0.47,232.72,232.65,20.8]
[1759435021033,0.47,232.72,232.65,21.49]
[1759435021418,4.29664002,232.74,232.66,0.69]
[1759435021635,4.76644794,232.76,232.67,20.8]
[1759435021938,0.47,232.79,232.71,20.8]
[1759435022118,41.4777392,232.83,232.72,21.48]
[1759435022119,10.87647521,232.81,232.72,21.48]
[1759435022434,0.47,232.8,232.72,21.48]
[1759435022819,0.47,232.8,232.73,20.8]
[1759435023222,21.27,232.79,232.67,0.68]
[1759435023414,10.87647521,232.77,232.65,21.48]
[1759435023616,10.87647521,232.77,232.67,20.8]
[1759435023832,10.87647521,232.74,232.67,20.8]
[1759435024139,10.87647521,232.72,232.64,12.90738948]
[1759435024341,10.87647521,232.7,232.61,0.68]
[1759435025227,10.87647521,232.7,232.63,20.8]
[1759435025619,0.47,232.7,232.63,20.8]
[1759435026226,4.29756328,232.69,232.63,20.8]
[1759435026759,4.29756328,232.69,232.63,0.68]
[1759435026919,4.29756328,232.69,232.64,0.68]
[1759435027124,4.29756328,232.69,232.65,0.68]
[1759435027324,4.76756328,232.69,232.62,0.68]
[1759435027836,15.51147148,232.69,232.62,0.68]
[1759435028259,4.29756328,232.69,232.62,0.68]
[1759435028432,4.76756328,232.69,232.62,0.68]
[1759435029433,15.51147148,232.69,232.62,0.68]
[1759435029742,15.04147148,232.69,232.62,0.68]
[1759435030534,10.87647521,232.69,232.62,0.68]
[1759435030843,10.87647521,232.69,232.62,4.97883594]
[1759435031140,10.87647521,232.69,232.63,0.68]
[1759435031544,4.29737859,232.7,232.63,0.68]
[1759435031842,20.8,232.74,232.63,21.48]
[1759435032423,20.8,232.74,232.64,0.68]
[1759435032950,15.03888625,232.73,232.64,0.68]
[1759435033944,10.87647521,232.72,232.64,0.68]
[1759435034535,10.87647521,232.72,232.63,20.8]
[1759435034737,15.04017876,232.71,232.61,0.9399]
[1759435034919,15.04017876,232.71,232.61,0.68]
[1759435036350,15.04017876,232.71,232.6,30.84]
[1759435036524,36.52614842,232.71,232.6,30.84]
[1759435036841,20.8,232.68,232.6,30.84]
[1759435037847,10.87647521,232.69,232.6,35.13917451]
[1759435038052,10.87647521,232.69,232.61,0.68]
[1759435038942,4.29774798,232.68,232.61,0.68]
[1759435039759,4.29774798,232.68,232.61,4.97897197]
[1759435040067,4.29774798,232.68,232.62,0.68]
[1759435041336,4.29756328,232.69,232.62,0.68]
[1759435042235,4.29756328,232.69,232.62,4.97884554]
[1759435042863,4.29756328,232.69,232.63,0.68]
[1759435044461,4.29756328,232.69,232.62,4.29884554]
[1759435044462,4.29756328,232.69,232.6,30.84]
[1759435044667,15.04147148,232.69,232.61,0.71]
[1759435045042,15.04147148,232.69,232.61,31.45]
[1759435045545,10.87647521,232.68,232.61,30.74]
[1759435045969,10.87647521,232.68,232.61,31.45]
[1759435046269,15.04276442,232.67,232.61,20.8]
[1759435047038,15.04276442,232.67,232.61,21.7699]
[1759435047764,15.04276442,232.67,232.62,0.71]
[1759435048638,10.74483173,232.67,232.63,0.71]
[1759435048843,10.74483173,232.67,232.61,21.0599]
[1759435049043,10.74483173,232.67,232.61,21.7699]
[1759435049345,10.74483173,232.67,232.61,21.0599]
[1759435049549,10.74483173,232.67,232.62,0.71]
[1759435049765,10.74483173,232.67,232.63,0.71]
[1759435050064,4.29774798,232.68,232.63,0.71]
[1759435050852,4.29774798,232.68,232.61,20.8]
[1759435051052,4.29774798,232.68,232.61,21.51]
[1759435051253,4.29774798,232.68,232.62,0.71]
[1759435052455,15.04211793,232.68,232.62,0.71]
[1759435053983,4.29774798,232.68,232.62,0.71]
[1759435054154,4.29756712,232.69,232.62,5.00879692]
[1759435054468,12.91016675,232.78,232.63,0.72]
[1759435054649,30.72,232.78,232.64,30.72]
[1759435054850,30.72,232.78,232.65,0.72]
[1759435055158,10.87647521,232.78,232.65,0.72]
[1759435055769,10.87647521,232.76,232.67,25.09791572]
[1759435056271,10.87647521,232.76,232.68,0.72]
[1759435056889,10.87647521,232.76,232.67,20.8]
[1759435057952,15.03759398,232.75,232.67,20.8]
[1759435058469,15.03759398,232.75,232.67,51.52]
[1759435058849,15.03759398,232.75,232.67,52.24]
[1759435059174,15.03759398,232.75,232.67,31.44]
[1759435059871,15.03759398,232.75,232.68,0.72]
[1759435060078,15.03759398,232.75,232.67,0.72]
[1759435061171,4.29645542,232.75,232.67,0.72]
[1759435062191,4.29645542,232.75,232.67,5.01783663]
[1759435062493,4.29645542,232.75,232.68,0.72]
[1759435064361,15.03759398,232.75,232.68,31.44]
[1759435065799,15.03759398,232.75,232.68,31.6999]
[1759435066483,15.03759398,232.75,232.69,0.72]
[1759435068870,10.87647521,232.74,232.68,0.2599]
[1759435070396,4.29645542,232.75,232.68,0.2599]
[1759435070583,4.29645542,232.75,232.69,0.72]
[1759435070781,10.74082523,232.76,232.69,0.72]
[1759435071095,4.29608626,232.77,232.73,20.8]
[1759435071288,4.29608626,232.77,232.73,21.52]
[1759435071879,15.03630192,232.77,232.73,21.52]
[1759435073372,10.87647521,232.79,232.73,20.8]
[1759435073594,10.87647521,232.79,232.74,0.72]
[1759435073794,10.87647521,232.79,232.73,20.8]
[1759435074887,15.03565597,232.78,232.73,20.8]
[1759435075192,15.03565597,232.78,232.73,21.52]
[1759435076901,10.87647521,232.79,232.74,0.72]
[1759435077987,4.2959017,232.78,232.74,0.72]
[1759435079082,10.87647521,232.79,232.74,0.72]
[1759435080005,15.03436425,232.8,232.75,0.72]
[1759435080305,4.29553264,232.8,232.76,0.72]
[1759435080502,7.53509048,232.85,232.76,0.72]
[1759435080503,7.53509048,232.85,232.77,0.72]
[1759435080691,11.82979137,232.85,232.77,0.72]
[1759435080876,10.87647521,232.84,232.77,0.72]
[1759435081077,4.29497916,232.83,232.77,0.72]
[1759435081377,10.87647521,232.84,232.77,0.72]
[1759435081779,10.87647521,232.84,232.76,52.14]
[1759435082901,10.87647521,232.84,232.77,0.66]
[1759435083495,15.03242708,232.83,232.77,0.66]
[1759435083800,15.03242708,232.83,232.76,52.14]
[1759435084005,15.03242708,232.83,232.76,51.48]
[1759435084301,15.03242708,232.83,232.77,0.66]
[1759435085581,0.2,232.96,232.77,4.95607412]
[1759435085788,4.29350392,232.91,232.8,20.8]
[1759435085992,0.2,232.96,232.84,20.8]
[1759435086187,0.2,232.96,232.85,0.66]
[1759435086399,0.2,232.97,232.89,20.8]
[1759435086602,4.49168239,233.01,232.9,0.66]
[1759435086787,4.49168239,233.01,232.94,20.8]
[1759435086985,4.49168239,233.01,232.95,0.66]
[1759435087193,4.49168239,233.01,232.99,20.8]
[1759435088396,10.87647521,233.0,232.92,0.66]
[1759435088607,10.87647521,233.0,232.94,20.8]
[1759435089088,10.87647521,233.0,232.92,0.66]
[1759435089290,10.87647521,233.0,232.93,20.8]
[1759435089588,10.87647521,232.98,232.89,0.9199]
[1759435089788,10.87647521,232.98,232.89,0.2599]
[1759435089989,10.87647521,232.98,232.89,21.0599]
[1759435090709,10.87647521,232.98,232.89,0.2599]
[1759435091194,10.87647521,232.98,232.89,1e-08]
[1759435091394,10.87647521,232.92,232.89,1e-08]
[1759435091627,41.53647521,232.92,232.89,1e-08]
[1759435092612,4.29350392,232.91,232.89,1e-08]
[1759435092799,10.87647521,232.9,232.89,1e-08]
[1759435094408,10.87647521,232.9,232.89,0.66000001]
[1759435094591,10.73283819,232.93,232.89,0.66000001]
[1759435094994,10.87647521,232.92,232.9,0.66]
[1759435095208,10.87647521,232.92,232.89,1e-08]
[1759435097004,4.29350392,232.91,232.89,1e-08]
[1759435097205,10.87647521,232.9,232.89,1e-08]
[1759435098926,4.29368827,232.9,232.89,1e-08]
[1759435100108,10.87647521,232.89,232.8,0.66]
[1759435101102,15.02919958,232.88,232.8,0.66]
[1759435101302,10.87647521,232.86,232.8,0.66]
[1759435102703,15.03113592,232.85,232.8,0.66]
[1759435103621,15.03113592,232.85,232.81,0.66]
[1759435103793,15.03113592,232.85,232.82,0.66]
[1759435105594,15.03113592,232.85,232.83,0.68]
[1759435105831,15.03113592,232.85,232.75,20.8]
[1759435106001,15.03113592,232.85,232.8,0.68]
[1759435106202,15.03113592,232.85,232.81,0.68]
[1759435106416,15.03113592,232.85,232.82,0.68]
[1759435106807,15.03113592,232.85,232.78,0.68]
[1759435107536,21.46844139,232.9,232.75,0.68]
[1759435107537,10.87647521,232.82,232.75,0.68]
[1759435108138,10.87647521,232.82,232.73,0.68]
[1759435108721,10.87647521,232.82,232.75,0.4586]
[1759435109418,10.87647521,232.82,232.76,0.68]
[1759435109713,15.03371847,232.81,232.76,0.68]
[1759435109918,10.87647521,232.8,232.76,0.68]
[1759435110142,10.87647521,232.8,232.75,0.4586]
[1759435110318,10.87647521,232.8,232.77,0.68]
[1759435111342,10.87647521,232.8,232.75,0.4586]
[1759435111528,10.87647521,232.8,232.75,1.1786]
[1759435111715,15.03501008,232.79,232.75,1.1786]
[1759435112034,10.87647521,232.78,232.75,1.1786]
[1759435112224,10.87647521,232.78,232.76,0.72]
[1759435113736,4.29608626,232.77,232.76,0.72]
[1759435114549,4.29608626,232.77,232.75,0.4586]
[1759435114951,4.29608626,232.77,232.76,0.72]
[1759435115536,4.29608626,232.77,232.75,0.4586]
[1759435116251,4.29608626,232.77,232.75,1.1786]
[1759435116952,4.29608626,232.77,232.75,0.4586]
[1759435117454,4.29608626,232.77,232.75,1.1786]
[1759435118053,4.29608626,232.77,232.76,0.72]
[1759435119229,10.87647521,232.81,232.76,0.72]
[1759435119822,10.87647521,232.81,232.77,0.72]
[1759435120026,10.87647521,232.81,232.75,1.1786]
[1759435121025,10.87647521,232.81,232.75,0.4586]
[1759435121221,10.87647521,232.79,232.75,0.4586]
[1759435121656,10.87647521,232.79,232.75,1.1786]
[1759435122641,10.87647521,232.79,232.75,0.4586]
[1759435123151,42.27581822,232.82,232.75,0.4586]
[1759435123152,15.03565597,232.78,232.75,0.4586]
[1759435124942,15.03565597,232.78,232.76,0.72]
[1759435125137,25.91213118,232.78,232.77,0.72]
[1759435125348,15.03565597,232.78,232.77,0.72]
[1759435125536,15.03565597,232.78,232.75,1.1786]
[1759435126828,15.03565597,232.78,232.75,0.72]
[1759435127154,15.03565597,232.78,232.73,0.72]
[1759435127352,10.73975427,232.78,232.73,0.72]
[1759435128363,10.73975427,232.78,232.71,0.72]
[1759435129257,15.03565597,232.78,232.71,0.72]
[1759435129465,10.87647521,232.77,232.71,0.72]
[1759435129760,30.66,232.76,232.67,0.72]
[1759435130761,15.03565597,232.78,232.67,0.72]
[1759435131266,4.2959017,232.78,232.68,20.8]
[1759435131470,4.29571716,232.79,232.72,20.8]
[1759435131652,4.29571716,232.79,232.73,0.72]
[1759435131850,15.03501008,232.79,232.73,0.72]
[1759435134073,4.29571716,232.79,232.73,0.72]
[1759435134360,4.29571716,232.79,232.76,20.8]
[1759435134570,4.29571716,232.79,232.77,0.72]
[1759435134745,4.29571716,232.79,232.78,0.72]
[1759435135145,15.03501008,232.79,232.66,20.8]